bitfinex/quotes_BTCUSD_20250519
["timestamp","ask_amount","ask_price","bid_price","bid_amount"]
[1747673718846,0.05864416,105170.0,105160.0,0.59205422]
[1747673719044,0.05013575,105170.0,105160.0,0.59205422]
[1747673719250,0.05964479,105170.0,105160.0,0.60156299]
[1747673719666,0.24030521,105170.0,105160.0,0.59205422]
[1747673719857,0.24130521,105170.0,105160.0,0.59205422]
[1747673720072,0.24130521,105170.0,105160.0,0.58254536]
[1747673720288,0.03211965,105170.0,105160.0,0.59205404]
[1747673720490,0.013104,105170.0,105160.0,0.62255404]
[1747673720698,0.02261169,105170.0,105160.0,0.62255404]
[1747673720903,0.03211938,105170.0,105160.0,0.62255404]
[1747673721396,0.013104,105170.0,105160.0,0.71986344]
[1747673721599,0.04162779,105170.0,105160.0,0.71986344]
[1747673721769,0.03211965,105170.0,105160.0,0.71986344]
[1747673722077,0.013104,105170.0,105160.0,2.99541044]
[1747673722336,0.013104,105170.0,105160.0,1.49198844]
[1747673722681,0.013104,105170.0,105160.0,1.63454844]
[1747673723246,0.012104,105170.0,105160.0,1.49198844]
[1747673723370,0.011104,105170.0,105160.0,1.63454844]
[1747673724924,0.01045518,105170.0,105160.0,1.49198844]
[1747673725147,0.02947101,105170.0,105160.0,1.28164362]
[1747673725317,0.22914807,105170.0,105160.0,0.36608728]
[1747673725511,0.22914807,105170.0,105160.0,0.35480563]
[1747673725826,0.21964011,105170.0,105160.0,0.48911948]
[1747673726605,0.21964011,105170.0,105160.0,0.68881517]
[1747673726805,0.21964011,105170.0,105160.0,0.48607858]
[1747673727663,0.01045518,105170.0,105160.0,0.72094148]
[1747673727896,0.03897906,105170.0,105160.0,0.87301016]
[1747673728264,0.23865639,105170.0,105160.0,0.85158266]
[1747673728469,0.23865639,105170.0,105160.0,0.86109161]
[1747673728673,0.01996287,105170.0,105160.0,1.34450615]
[1747673728913,0.03897906,105170.0,105160.0,1.13985815]
[1747673729114,0.02947083,105170.0,105160.0,1.00707215]
[1747673729320,0.01996287,105170.0,105160.0,1.00707215]
[1747673729524,0.02947074,105170.0,105160.0,1.01011241]
[1747673729864,0.01045518,105170.0,105160.0,1.01011241]
[1747673730038,0.01996287,105170.0,105160.0,1.01011241]
[1747673730225,0.02947083,105170.0,105160.0,1.01011241]
[1747673730630,0.03897888,105170.0,105160.0,0.84943941]
[1747673730887,0.01996287,105170.0,105160.0,0.99199941]
[1747673731086,0.02947074,105170.0,105160.0,0.99199941]
[1747673731326,0.30652107,105170.0,105160.0,0.6242275]
[1747673731529,0.30652107,105170.0,105160.0,0.80273205]
[1747673731732,0.11635278,105170.0,105160.0,0.82169088]
[1747673731937,0.22914789,105170.0,105160.0,0.6410949]
[1747673732142,0.22914789,105170.0,105160.0,0.65060394]
[1747673732345,0.22914789,105170.0,105160.0,0.66011289]
[1747673732886,0.22914789,105170.0,105160.0,0.66962175]
[1747673734004,0.22914789,105170.0,105160.0,0.67913052]
[1747673734804,0.22914789,105170.0,105160.0,0.66962175]
[1747673735842,0.01996278,105170.0,105160.0,0.71213043]
[1747673736043,0.02947065,105170.0,105160.0,0.88665043]
[1747673736246,0.03897879,105170.0,105160.0,0.88665043]
[1747673737012,0.22914708,105170.0,105160.0,0.83910577]
[1747673737316,0.03897879,105170.0,105160.0,0.73462139]
[1747673737516,0.05799534,105170.0,105160.0,0.87714139]
[1747673737739,0.23865603,105170.0,105160.0,0.83563271]
[1747673737971,0.04848774,105170.0,105160.0,0.87644139]
[1747673738281,0.23865603,105170.0,105160.0,0.86693289]
[1747673738490,0.04848774,105170.0,105160.0,0.88595034]
[1747673738693,0.03897942,105170.0,105160.0,0.88595034]
[1747673738906,0.01045518,105170.0,105160.0,0.85465034]
[1747673739119,0.01045518,105170.0,105160.0,3.40035634]
[1747673739743,0.01045518,105170.0,105160.0,3.25783634]
[1747673739919,0.01045518,105170.0,105160.0,3.40035634]
[1747673740612,0.01045518,105170.0,105160.0,3.4050442]
[1747673740828,0.01045518,105170.0,105160.0,3.2625242]
[1747673741030,0.01045518,105170.0,105160.0,3.4050442]
[1747673741734,0.01045518,105170.0,105160.0,3.4130442]
[1747673741939,0.01045518,105170.0,105160.0,2.8728232]
[1747673743506,0.01045518,105170.0,105160.0,2.7303032]
[1747673743891,0.01045518,105170.0,105160.0,2.8728232]
[1747673744147,0.01045518,105170.0,105160.0,2.86813534]
[1747673744563,0.01045518,105170.0,105160.0,2.72561534]
[1747673744755,0.01045518,105170.0,105160.0,2.87813534]
[1747673744937,0.01045518,105170.0,105160.0,2.73561534]
[1747673745381,0.01045518,105170.0,105160.0,2.87813534]
[1747673745579,0.01045518,105170.0,105160.0,2.73561534]
[1747673745710,0.01045518,105170.0,105160.0,2.87813534]
[1747673745894,0.01045518,105170.0,105160.0,2.73561534]
[1747673746531,0.01045518,105170.0,105160.0,2.87813534]
[1747673747012,0.01045518,105170.0,105160.0,2.73561534]
[1747673747302,0.01045518,105170.0,105160.0,2.87813534]
[1747673747865,0.01045518,105170.0,105160.0,2.73561534]
[1747673748103,0.0089801,105170.0,105160.0,2.73661534]
[1747673748291,0.06729209,105190.0,105180.0,0.62037164]
[1747673748292,0.02926785,105190.0,105180.0,0.62037164]
[1747673748649,0.02926785,105190.0,105180.0,2.53872304]
[1747673748940,0.02926785,105190.0,105180.0,2.70752727]
[1747673749378,0.00214475,105210.0,105200.0,0.0717]
[1747673749570,0.00438345,105230.0,105220.0,0.09021059]
[1747673749747,0.00438345,105230.0,105220.0,1.89621521]
[1747673749908,0.00438345,105230.0,105220.0,1.89688018]
[1747673750323,0.00438345,105230.0,105220.0,1.33013518]
[1747673750526,0.22295075,105230.0,105220.0,0.34690266]
[1747673750745,0.03289089,105230.0,105220.0,0.46160183]
[1747673750952,0.04239379,105230.0,105220.0,0.44934292]
[1747673751242,0.23245428,105230.0,105220.0,0.43983957]
[1747673751451,0.24844911,105230.0,105220.0,0.42083224]
[1747673751699,0.04888626,105230.0,105220.0,0.44934346]
[1747673751992,0.0253888,105230.0,105220.0,0.45884681]
[1747673752178,0.0253888,105230.0,105220.0,0.47185638]
[1747673752500,0.04439379,105230.0,105220.0,0.47185638]
[1747673752634,0.24395664,105230.0,105220.0,0.33309212]
[1747673752855,0.28064911,105230.0,105220.0,0.20727195]
[1747673753242,0.5417463,105230.0,105220.0,0.20727204]
[1747673754137,0.53224331,105230.0,105220.0,0.00769022]
[1747673754351,0.01900706,105220.0,105210.0,0.3753095]
[1747673754536,0.27698345,105230.0,105210.0,0.75687108]
[1747673754723,0.3054917,105230.0,105220.0,0.30639466]
[1747673754936,0.31499397,105230.0,105220.0,0.30639466]
[1747673755086,0.23445383,105230.0,105220.0,0.30639484]
[1747673755282,0.50505383,105230.0,105220.0,0.32540181]
[1747673755914,0.28648563,105230.0,105220.0,0.33490507]
[1747673756123,0.03489062,105230.0,105220.0,0.33490507]
[1747673756412,0.23445329,105230.0,105220.0,0.32640181]
[1747673756615,0.04439343,105230.0,105220.0,0.33590507]
[1747673758856,0.04439343,105230.0,105220.0,0.32640181]
[1747673759219,0.23445329,105230.0,105220.0,0.32640199]
[1747673759436,0.26675329,105230.0,105220.0,0.32640199]
[1747673759587,0.26675329,105230.0,105220.0,0.67590498]
[1747673759972,0.29875329,105230.0,105220.0,0.67590498]
[1747673760171,0.28925111,105230.0,105220.0,0.20058173]
[1747673760350,0.28925111,105230.0,105220.0,0.21958906]
[1747673760562,0.07068345,105230.0,105220.0,0.5690925]
[1747673760781,0.02538817,105230.0,105220.0,0.67590516]
[1747673760993,0.02538808,105230.0,105220.0,0.67590516]
[1747673761196,0.01588572,105230.0,105220.0,0.67590516]
[1747673761411,0.02538817,105230.0,105220.0,0.67590516]
[1747673761616,0.03489071,105230.0,105220.0,0.67590516]
[1747673761747,0.04439352,105230.0,105220.0,0.67590516]
[1747673762528,0.23445338,105230.0,105220.0,0.67590525]
[1747673762731,0.04439352,105230.0,105220.0,0.67590471]
[1747673762972,0.05389642,105230.0,105220.0,0.67590471]
[1747673763896,0.23445455,105230.0,105220.0,0.64739466]
[1747673764120,0.26725455,105230.0,105220.0,0.65689819]
[1747673764328,0.2809492,105230.0,105220.0,0.4383094]
[1747673764679,0.2809492,105230.0,105220.0,0.62838733]
[1747673764879,0.2809492,105230.0,105220.0,0.64739484]
[1747673765090,0.2809492,105230.0,105220.0,0.4383094]
[1747673765459,0.2809492,105230.0,105220.0,0.341]
[1747673765870,0.2809492,105230.0,105220.0,0.351]
[1747673766305,0.62097077,105230.0,105220.0,0.011]
[1747673766510,0.71828017,105230.0,105220.0,0.011]
[1747673768109,0.60828017,105230.0,105220.0,0.011]
[1747673768502,0.61128017,105230.0,105220.0,0.011]
[1747673768719,0.61128017,105230.0,105220.0,0.01]
[1747673768900,0.61228017,105230.0,105220.0,0.01]
[1747673769773,0.28679945,105230.0,105220.0,0.01]
[1747673769973,0.56487945,105230.0,105220.0,0.01]
[1747673771778,0.28679945,105230.0,105220.0,0.01]
[1747673771957,0.18949005,105230.0,105220.0,0.01]
[1747673772182,0.1749492,105230.0,105220.0,0.01]
[1747673772589,0.17733665,105230.0,105220.0,0.01]
[1747673772797,0.1918775,105230.0,105220.0,0.20958182]
[1747673772941,0.17733665,105230.0,105220.0,0.20958182]
[1747673773146,0.17733665,105230.0,105220.0,0.01]
[1747673774076,0.1189521,105230.0,105220.0,0.20007793]
[1747673774304,0.1189521,105230.0,105220.0,0.01]
[1747673774511,0.1825521,105230.0,105220.0,0.21262066]
[1747673774735,0.1487521,105230.0,105220.0,0.22212437]
[1747673775177,0.1457521,105230.0,105220.0,0.23162781]
[1747673775722,0.1457521,105230.0,105220.0,0.23162799]
[1747673775939,0.1149521,105230.0,105220.0,0.24113152]
[1747673776566,0.1159521,105230.0,105220.0,0.24113152]
[1747673777609,0.21006575,105230.0,105220.0,0.58113152]
[1747673777877,0.25006575,105230.0,105220.0,0.59063487]
[1747673778283,0.25006575,105230.0,105220.0,0.57162799]
[1747673778803,0.06000463,105230.0,105220.0,0.59063478]
[1747673779007,0.07900998,105230.0,105220.0,0.59063478]
[1747673779433,0.27857274,105230.0,105220.0,0.59063478]
[1747673779790,0.27857355,105230.0,105220.0,0.59063478]
[1747673780004,0.0695078,105230.0,105220.0,0.59063478]
[1747673780212,0.06950771,105230.0,105220.0,0.68794418]
[1747673780758,0.07901052,105230.0,105220.0,0.68794418]
[1747673782316,0.07901052,105230.0,105220.0,0.75104418]
[1747673782771,0.07901052,105230.0,105220.0,0.72074418]
[1747673783114,0.07901052,105230.0,105220.0,0.68794418]
[1747673783512,0.06000499,105230.0,105220.0,0.71824418]
[1747673783729,0.07901052,105230.0,105220.0,0.68794418]
[1747673784129,0.26907092,105230.0,105220.0,0.66893739]
[1747673784336,0.29977092,105230.0,105220.0,0.66893739]
[1747673784578,0.29977092,105230.0,105220.0,0.65943368]
[1747673784778,0.25956838,105230.0,105220.0,0.65943368]
[1747673785178,0.24056285,105230.0,105220.0,0.45034833]
[1747673785887,0.24056285,105230.0,105220.0,0.64993015]
[1747673786095,0.24056285,105230.0,105220.0,0.45034833]
[1747673786257,0.24056285,105230.0,105220.0,0.64042626]
[1747673786461,0.24056285,105230.0,105220.0,0.45034833]
[1747673786665,0.27236285,105230.0,105220.0,0.45034833]
[1747673787747,0.57398285,105230.0,105220.0,0.45034833]
[1747673788819,0.57398285,105230.0,105220.0,0.35303893]
[1747673789016,0.5885237,105230.0,105220.0,0.35303893]
[1747673795323,0.19958164,105220.0,105210.0,0.00110197]
[1747673796385,0.46930164,105220.0,105210.0,0.00110197]
[1747673796601,0.46930164,105220.0,105210.0,0.00210197]
[1747673797261,0.46930164,105220.0,105210.0,0.53419796]
[1747673797999,0.49229986,105230.0,105220.0,0.19958164]
[1747673798417,0.49229986,105230.0,105220.0,0.20908526]
[1747673798818,0.49229986,105230.0,105220.0,0.19958173]
[1747673799574,0.49329986,105230.0,105220.0,0.20908544]
[1747673799941,0.49329986,105230.0,105220.0,0.19007793]
[1747673800172,0.4931561,105230.0,105220.0,0.19958182]
[1747673800428,0.2309161,105230.0,105220.0,0.20908562]
[1747673800643,0.02851023,105220.0,105210.0,0.69022047]
[1747673800857,0.03801331,105220.0,105210.0,1.05710247]
[1747673801017,0.03801322,105220.0,105210.0,1.05710247]
[1747673801622,0.04751684,105220.0,105210.0,1.05910247]
[1747673801865,0.05051684,105220.0,105210.0,1.05910247]
[1747673802023,0.05051684,105220.0,105210.0,1.06010247]
[1747673802654,0.05051747,105220.0,105210.0,0.72402047]
[1747673802836,0.04101376,105220.0,105210.0,1.01899147]
[1747673803037,0.05051747,105220.0,105210.0,1.01899147]
[1747673803279,0.04101376,105220.0,105210.0,0.98352447]
[1747673804010,0.05051756,105220.0,105210.0,0.98352447]
[1747673804392,0.05051747,105220.0,105210.0,0.83570047]
[1747673804638,0.05051747,105220.0,105210.0,0.80250056]
[1747673804639,0.24059594,105220.0,105210.0,0.80250056]
[1747673804778,0.24059648,105220.0,105210.0,0.80250056]
[1747673805171,0.24059648,105220.0,105210.0,0.81200472]
[1747673805490,0.27498562,105220.0,105210.0,0.00410197]
[1747673805701,0.53722562,105220.0,105210.0,0.00410197]
[1747673806031,0.55176647,105220.0,105210.0,0.00410197]
[1747673807438,0.55050719,105220.0,105210.0,0.00410197]
[1747673807809,0.2299161,105230.0,105210.0,0.14557515]
[1747673808009,0.19958155,105220.0,105210.0,0.58526075]
[1747673808285,0.19958155,105220.0,105210.0,0.37720197]
[1747673808471,0.19958155,105220.0,105210.0,0.34714081]
[1747673809038,0.19958155,105220.0,105210.0,0.34514081]
[1747673809247,0.19958155,105220.0,105210.0,0.34414081]
[1747673809447,0.19958155,105220.0,105210.0,0.34714081]
[1747673809691,0.19958155,105220.0,105210.0,0.35014081]
[1747673809897,0.19958155,105220.0,105210.0,0.34714081]
[1747673810267,0.19958155,105220.0,105210.0,0.34814081]
[1747673810869,0.61680906,105220.0,105210.0,0.34514081]
[1747673811270,0.61680906,105220.0,105210.0,0.34614081]
[1747673811473,0.61680906,105220.0,105210.0,0.00614081]
[1747673813431,0.29132834,105220.0,105210.0,0.00614081]
[1747673813766,0.61680906,105220.0,105210.0,0.00614081]
[1747673813921,0.87908906,105220.0,105210.0,0.00414081]
[1747673814113,0.55360834,105220.0,105210.0,0.00414081]
[1747673814352,0.88008906,105220.0,105210.0,0.00414081]
[1747673814526,0.49180834,105220.0,105210.0,0.00414081]
[1747673816852,0.81728906,105220.0,105210.0,0.00414081]
[1747673817082,0.87938906,105220.0,105210.0,0.00414081]
[1747673818472,0.19009599,105210.0,105190.0,0.50601847]
[1747673818671,0.19011406,105200.0,105190.0,0.60380679]
[1747673818879,0.19011406,105200.0,105190.0,0.93895279]
[1747673819642,0.19011406,105200.0,105190.0,0.94195279]
[1747673819973,0.20912447,105200.0,105190.0,0.93895279]
[1747673820358,0.22813506,105200.0,105190.0,0.93895279]
[1747673820705,0.23764067,105200.0,105190.0,0.94845876]
[1747673820875,0.23764067,105200.0,105190.0,0.95045876]
[1747673821086,0.23764067,105200.0,105190.0,0.81995958]
[1747673821292,0.23764067,105200.0,105190.0,0.13710406]
[1747673821293,0.20912519,105200.0,105190.0,0.13710406]
[1747673821527,0.20912519,105200.0,105190.0,0.3272362]
[1747673821721,0.20912519,105200.0,105190.0,0.33322697]
[1747673821931,0.20912519,105200.0,105190.0,0.34273339]
[1747673822133,0.20912519,105200.0,105190.0,0.58415272]
[1747673822464,0.00950525,105200.0,105190.0,0.49844724]
[1747673822672,0.02851575,105200.0,105190.0,0.48894082]
[1747673823074,0.00950498,105200.0,105190.0,0.48894082]
[1747673823250,0.01901014,105200.0,105190.0,0.48894082]
[1747673823428,0.01900841,105210.0,105200.0,0.28262972]
[1747673823634,0.03801736,105210.0,105200.0,0.68526812]
[1747673823836,0.2652161,105230.0,105210.0,0.27310494]
[1747673823994,0.2652161,105230.0,105210.0,0.29211326]
[1747673823995,0.03553412,105220.0,105210.0,0.29211326]
[1747673824203,0.0450372,105220.0,105210.0,0.33297072]
[1747673824392,0.23511513,105220.0,105210.0,0.53257159]
[1747673824596,0.22809259,105220.0,105210.0,0.53257159]
[1747673824997,0.2185887,105220.0,105210.0,0.53257159]
[1747673825269,0.04185624,105230.0,105220.0,0.28208852]
[1747673825465,0.04185624,105230.0,105220.0,0.37939792]
[1747673825704,0.04185624,105230.0,105220.0,0.52187792]
[1747673825923,0.04185624,105230.0,105220.0,0.65436692]
[1747673826098,0.04185624,105230.0,105220.0,0.37939792]
[1747673826099,0.07036323,105230.0,105220.0,0.37939792]
[1747673826290,0.06086069,105230.0,105220.0,0.75362792]
[1747673826726,0.06086069,105230.0,105220.0,0.81362792]
[1747673827058,0.04185624,105230.0,105220.0,1.09362792]
[1747673827287,0.04185624,105230.0,105220.0,1.09462792]
[1747673827698,0.04185624,105230.0,105220.0,1.09562792]
[1747673828530,0.04185624,105230.0,105220.0,0.84382688]
[1747673828726,0.04185624,105230.0,105220.0,1.04340861]
[1747673828946,0.04185624,105230.0,105220.0,1.04692435]
[1747673829662,0.05135851,105230.0,105220.0,0.90444435]
[1747673829817,0.04185624,105230.0,105220.0,1.04692435]
[1747673830438,0.05135842,105230.0,105220.0,1.04692435]
[1747673830632,0.04185624,105230.0,105220.0,1.04996269]
[1747673830982,0.05135842,105230.0,105220.0,1.04996269]
[1747673831164,0.05135842,105230.0,105220.0,1.10996269]
[1747673831677,0.05135842,105230.0,105220.0,1.14036269]
[1747673832100,0.07036332,105230.0,105220.0,1.05295169]
[1747673832338,0.06086078,105230.0,105220.0,1.05295169]
[1747673832637,0.26042462,105230.0,105220.0,0.83746961]
[1747673832790,0.26042462,105230.0,105220.0,0.7600797]
[1747673832965,0.26042462,105230.0,105220.0,0.77908703]
[1747673833369,0.26042462,105230.0,105220.0,0.76958341]
[1747673833596,0.26042462,105230.0,105220.0,0.77908703]
[1747673834012,0.04185624,105230.0,105220.0,2.06161033]
[1747673837097,0.04185624,105230.0,105220.0,2.09078589]
[1747673837354,0.04185624,105230.0,105220.0,2.06161033]
[1747673838067,0.04185624,105230.0,105220.0,2.05961033]
[1747673838272,0.04185624,105230.0,105220.0,2.06361033]
[1747673838472,0.04185624,105230.0,105220.0,2.06761033]
[1747673840132,0.04185624,105230.0,105220.0,2.06877047]
[1747673840933,0.04185624,105230.0,105220.0,2.06955639]
[1747673842452,0.04185624,105230.0,105220.0,2.06877047]
[1747673842743,0.04185624,105230.0,105220.0,2.06955639]
[1747673844750,0.04185624,105230.0,105220.0,2.08349891]
[1747673845104,0.04185624,105230.0,105220.0,2.06955639]
[1747673845304,0.00018836,105240.0,105230.0,0.55856775]
[1747673845545,0.00018836,105240.0,105230.0,4.63413933]
[1747673846460,0.00018836,105240.0,105230.0,4.64298225]
[1747673846666,0.00018836,105240.0,105230.0,4.78705825]
[1747673847644,0.00018836,105240.0,105230.0,4.66012329]
[1747673847847,0.00018836,105240.0,105230.0,4.27020329]
[1747673848045,0.00018836,105240.0,105230.0,4.27461129]
[1747673848252,0.00018836,105240.0,105230.0,3.27703229]
[1747673849422,0.00018836,105240.0,105230.0,3.27781814]
[1747673850058,0.00018836,105240.0,105230.0,3.13537814]
[1747673850238,0.00018836,105240.0,105230.0,3.27781814]
[1747673850416,0.00018836,105240.0,105230.0,3.13537814]
[1747673850597,0.00018836,105240.0,105230.0,3.27781814]
[1747673851002,0.00018836,105240.0,105230.0,3.30791814]
[1747673851248,0.00018836,105240.0,105230.0,2.88142614]
[1747673852255,0.00018836,105240.0,105230.0,1.95392314]
[1747673852489,0.00018836,105240.0,105230.0,2.09132314]
[1747673852721,0.00968972,105240.0,105230.0,2.09832314]
[1747673853955,0.00018836,105240.0,105230.0,2.09832314]
[1747673854166,0.00018836,105240.0,105230.0,2.15972314]
[1747673854765,0.00836407,105250.0,105240.0,0.25024697]
[1747673854968,0.00836407,105250.0,105240.0,3.89526537]
[1747673855789,0.00836407,105250.0,105240.0,3.90230371]
[1747673856159,0.00836407,105250.0,105240.0,3.90530371]
[1747673856390,0.00836407,105250.0,105240.0,4.27700371]
[1747673857265,0.00014905,105260.0,105250.0,0.21852621]
[1747673857490,0.00014905,105260.0,105250.0,3.92824461]
[1747673858364,0.00014905,105260.0,105250.0,2.72272861]
[1747673858563,0.00014905,105260.0,105250.0,2.72472861]
[1747673858770,0.00014905,105260.0,105250.0,2.72572861]
[1747673859024,0.00014905,105260.0,105250.0,2.73343811]
[1747673860245,0.00014905,105260.0,105250.0,2.70173811]
[1747673861173,0.00014905,105260.0,105250.0,2.84413811]
[1747673862142,0.00014905,105260.0,105250.0,2.48507211]
[1747673862391,0.00014905,105260.0,105250.0,2.92347211]
[1747673864212,0.00014905,105260.0,105250.0,2.51527211]
[1747673864517,0.00014905,105260.0,105250.0,2.45207211]
[1747673864717,0.00014905,105260.0,105250.0,2.48217211]
[1747673865930,0.00014905,105260.0,105250.0,2.19652511]
[1747673866138,0.00964861,105260.0,105250.0,1.17630711]
[1747673866334,0.00964861,105260.0,105250.0,1.03390711]
[1747673866515,0.04164861,105260.0,105250.0,1.17630711]
[1747673866721,0.05114826,105260.0,105250.0,1.17630711]
[1747673866929,0.060648,105260.0,105250.0,1.37390711]
[1747673867138,0.28095451,105260.0,105250.0,0.78894574]
[1747673867343,0.28095451,105260.0,105250.0,0.80894529]
[1747673867558,0.27145477,105260.0,105250.0,0.92718934]
[1747673867762,0.27145477,105260.0,105250.0,0.92630834]
[1747673868409,0.27145477,105260.0,105250.0,0.2348825]
[1747673868613,0.27145477,105260.0,105250.0,0.1531095]
[1747673868832,0.27145477,105260.0,105250.0,0.4931095]
[1747673869438,0.27145477,105260.0,105250.0,0.70213534]
[1747673869599,0.27145477,105260.0,105250.0,0.4931095]
[1747673869799,0.27145477,105260.0,105250.0,0.69263425]
[1747673870495,0.27145477,105260.0,105250.0,0.70213516]
[1747673870787,0.27145477,105260.0,105250.0,0.7009708]
[1747673872191,0.09094926,105260.0,105250.0,0.71997199]
[1747673872434,0.03214905,105260.0,105250.0,0.81728139]
[1747673872681,0.00014905,105260.0,105250.0,2.76420339]
[1747673872842,0.00964861,105260.0,105250.0,2.76420339]
[1747673873090,0.00964861,105260.0,105250.0,2.73220339]
[1747673873271,0.04084861,105260.0,105250.0,2.71857939]
[1747673873480,0.0096487,105260.0,105250.0,2.71857939]
[1747673873768,0.00964861,105260.0,105250.0,2.75067939]
[1747673873910,0.00964861,105260.0,105250.0,1.37174639]
[1747673874336,0.01914835,105260.0,105250.0,1.37291075]
[1747673874962,0.00964861,105260.0,105250.0,1.37291075]
[1747673875328,0.00014905,105260.0,105250.0,1.40501075]
[1747673875783,0.00014905,105260.0,105250.0,1.43621075]
[1747673876577,0.00014905,105260.0,105250.0,0.94777241]
[1747673877714,0.00014905,105260.0,105250.0,0.94310125]
[1747673877922,0.20233948,105270.0,105260.0,0.28120546]
[1747673878127,0.20233948,105270.0,105260.0,4.04549704]
[1747673878325,0.20233948,105270.0,105260.0,4.14599704]
[1747673878531,0.02093274,105280.0,105270.0,0.21848471]
[1747673878732,0.0021781,105290.0,105280.0,0.28266394]
[1747673878934,0.00234754,105310.0,105300.0,0.0332]
[1747673879077,0.00234754,105310.0,105300.0,3.96327148]
[1747673879277,0.00234754,105310.0,105300.0,3.20268985]
[1747673879498,0.03584637,105330.0,105320.0,0.36848353]
[1747673879805,0.0022069,105330.0,105320.0,2.0294623]
[1747673880435,0.02119385,105330.0,105320.0,2.1718623]
[1747673880810,0.22156742,105330.0,105320.0,1.47108132]
[1747673881006,0.21207399,105330.0,105320.0,0.93046232]
[1747673881208,0.24487399,105330.0,105320.0,0.37208632]
[1747673881449,0.24487399,105330.0,105320.0,0.49770577]
[1747673881650,0.05499403,105330.0,105320.0,0.65909497]
[1747673881852,0.064488,105330.0,105320.0,0.65909497]
[1747673882090,0.06448719,105330.0,105320.0,0.65909497]
[1747673882293,0.03168719,105330.0,105320.0,0.65909497]
[1747673882425,0.02219349,105330.0,105320.0,0.67808354]
[1747673882630,0.0032069,105330.0,105320.0,0.67808354]
[1747673883051,0.0032069,105330.0,105320.0,1.01808354]
[1747673883614,0.03385425,105340.0,105330.0,0.55836025]
[1747673883798,0.03385425,105340.0,105330.0,4.13926925]
[1747673884035,0.03385425,105340.0,105330.0,4.31395183]
[1747673884393,0.03385425,105340.0,105330.0,4.28075183]
[1747673884566,0.03385425,105340.0,105330.0,4.12509465]
[1747673885014,0.03385425,105340.0,105330.0,4.12859725]
[1747673885798,0.02862425,105340.0,105330.0,4.12859725]
[1747673886272,0.03362425,105340.0,105330.0,4.12859725]
[1747673886464,0.03362425,105340.0,105330.0,4.16149725]
[1747673886896,0.005,105340.0,105330.0,4.16149725]
[1747673887096,0.005,105340.0,105330.0,4.19449725]
[1747673887300,0.005,105340.0,105330.0,4.24639725]
[1747673887501,0.00421495,105340.0,105330.0,4.27989668]
[1747673888117,0.00421495,105340.0,105330.0,4.54207224]
[1747673888476,0.00421495,105340.0,105330.0,4.5462408]
[1747673888678,0.00421495,105340.0,105330.0,4.51706524]
[1747673888911,0.00421495,105340.0,105330.0,4.48356581]
[1747673889231,0.00421495,105340.0,105330.0,4.5482408]
[1747673889451,0.00421495,105340.0,105330.0,4.54927521]
[1747673890032,0.00421495,105340.0,105330.0,4.48660022]
[1747673890415,0.43999849,105350.0,105340.0,0.6198395]
[1747673890616,0.43999849,105350.0,105340.0,4.76773051]
[1747673890818,0.43999849,105350.0,105340.0,4.79227136]
[1747673891035,0.43999849,105350.0,105340.0,4.82915249]
[1747673891223,0.43999849,105350.0,105340.0,4.82974088]
[1747673891638,0.43999849,105350.0,105340.0,4.68969271]
[1747673891827,0.43999849,105350.0,105340.0,4.60365186]
[1747673892026,0.43999849,105350.0,105340.0,4.74897186]
[1747673892349,0.43999849,105350.0,105340.0,4.60965186]
[1747673892546,0.43999849,105350.0,105340.0,4.75197186]
[1747673892732,0.43999849,105350.0,105340.0,4.78417186]
[1747673893146,0.43999849,105350.0,105340.0,4.64185186]
[1747673893342,0.43999849,105350.0,105340.0,5.01717186]
[1747673893742,0.43999849,105350.0,105340.0,5.02063378]
[1747673893999,0.43999849,105350.0,105340.0,4.12380438]
[1747673894125,0.43999849,105350.0,105340.0,4.26608438]
[1747673894326,0.43999849,105350.0,105340.0,3.95028878]
[1747673894522,0.43999849,105350.0,105340.0,1.23912778]
[1747673894723,0.43999849,105350.0,105340.0,1.43684778]
[1747673894962,0.43999849,105350.0,105340.0,1.57912778]
[1747673894963,0.44949002,105350.0,105340.0,1.57912778]
[1747673895336,0.65831699,105350.0,105340.0,1.07786265]
[1747673895514,0.51016569,105350.0,105340.0,0.61901157]
[1747673895782,0.51016569,105350.0,105340.0,0.59675689]
[1747673895783,0.71292609,105350.0,105340.0,0.59675689]
[1747673896588,0.71292609,105350.0,105340.0,0.01716749]
[1747673896798,0.71292609,105350.0,105340.0,0.15131441]
[1747673897236,0.71292609,105350.0,105340.0,0.21131441]
[1747673897445,1.05294766,105350.0,105340.0,0.06903441]
[1747673897646,0.72746694,105350.0,105340.0,0.06903441]
[1747673897849,0.72746694,105350.0,105340.0,0.06603441]
[1747673898169,0.72746694,105350.0,105340.0,0.064]
[1747673898375,0.72746694,105350.0,105340.0,0.063]
[1747673898613,0.72746694,105350.0,105340.0,0.06]
[1747673898795,0.72746694,105350.0,105340.0,0.062]
[1747673899426,0.96037223,105350.0,105340.0,0.06]
[1747673901442,1.3003938,105350.0,105340.0,0.06]
[1747673901594,1.46889747,105350.0,105340.0,0.06]
[1747673901816,1.3977032,105350.0,105340.0,0.06]
[1747673902026,0.22340758,105330.0,105320.0,0.00047892]
[1747673902375,0.7090977,105330.0,105320.0,0.00047892]
[1747673902516,1.03457842,105330.0,105320.0,0.00047892]
[1747673902726,0.38361698,105330.0,105320.0,0.00047892]
[1747673903173,0.9420977,105330.0,105320.0,0.00047892]
[1747673903368,0.00949469,105320.0,105310.0,0.00346192]
[1747673903565,0.65761056,105320.0,105310.0,0.00394102]
[1747673903797,0.35454085,105310.0,105280.0,0.01013308]
[1747673903970,0.54896764,105290.0,105280.0,0.01061272]
[1747673904316,0.22348692,105290.0,105280.0,0.01061272]
[1747673904728,0.71027704,105290.0,105280.0,0.01061272]
[1747673904863,0.94327704,105290.0,105280.0,0.01261272]
[1747673905067,0.61779632,105290.0,105280.0,0.01261272]
[1747673905270,0.61879632,105290.0,105280.0,0.01061272]
[1747673905470,0.63297193,105290.0,105280.0,0.01061272]
[1747673905892,0.95845265,105290.0,105280.0,0.01061272]
[1747673906496,0.95945265,105290.0,105280.0,0.01061272]
[1747673906940,0.95945265,105290.0,105280.0,0.00247964]
[1747673908103,0.63397193,105290.0,105280.0,0.00247964]
[1747673908471,0.40097193,105290.0,105280.0,0.00247964]
[1747673908672,0.62709193,105290.0,105280.0,0.00247964]
[1747673910263,0.02099451,105290.0,105280.0,0.06537964]
[1747673910449,0.22044364,105290.0,105280.0,0.6917191]
[1747673910665,0.02099397,105290.0,105280.0,0.79852661]
[1747673910925,0.002,105290.0,105280.0,0.92570545]
[1747673911125,0.001,105290.0,105280.0,0.92570545]
[1747673911325,0.001,105290.0,105280.0,0.92670545]
[1747673911639,0.01049676,105290.0,105280.0,0.92670545]
[1747673911785,0.001,105290.0,105280.0,0.92570545]
[1747673911980,0.20890675,105310.0,105300.0,0.53943001]
[1747673912195,0.20890675,105310.0,105300.0,0.53943019]
[1747673912461,0.20890675,105310.0,105300.0,0.54892668]
[1747673912798,0.20890675,105310.0,105300.0,0.53943019]
[1747673913003,0.20890675,105310.0,105300.0,0.34949667]
[1747673913792,0.21190675,105310.0,105300.0,0.34949667]
[1747673914107,0.21190675,105310.0,105300.0,0.53943019]